fUSD/lending_fUSD_20260203
["ID","MTS","AMOUNT","RATE_DAILY","PERIOD"]
[404363848,1770077453209,-150.25668222,0.00016438,2]
[404363849,1770077453218,-800.0,0.00016438,2]
[404363850,1770077453228,-3000.0,0.00016438,2]
[404363851,1770077453238,-373.07297731,0.00016453,2]
[404363852,1770077453248,-621.78829552,0.00016455,2]
[404363853,1770077453257,-775.47832561,0.00016455,2]
[404363854,1770077453266,-2054.15682157,0.00016457,2]
[404363855,1770077453276,-251.11897888,0.00016457,2]
[404363856,1770077453286,-900.0,0.00016573,2]
[404363857,1770077453297,-159.60859955,0.00016641,2]
[404363858,1770077453308,-500.0,0.00016644,2]
[404363859,1770077453319,-230.88290778,0.00016644,2]
[404363860,1770077453329,-421.88469562,0.00016664,2]
[404363861,1770077453339,-16763.1750962,0.00016668,2]
[404363862,1770077453349,-7398.87,0.00016696,2]
[404363863,1770077453360,-165.79,0.00016712,2]
[404363864,1770077453369,-19098.8127,0.00016726,2]
[404363865,1770077453379,-11308.27724113,0.00016755,2]
[404363866,1770077453389,-169.0,0.000169,3]
[404363867,1770077453399,-2172.44734327,0.00016986,2]
[404363868,1770077453409,-606.58411672,0.00017,5]
[404363869,1770077453419,-500.0,0.00017,2]
[404363870,1770077453429,-300.0,0.00017,2]
[404363871,1770077453439,-500.0,0.00017,2]
[404363872,1770077453449,-260.4103811,0.00017005,2]
[404363873,1770077453459,-287.0,0.00017104,2]
[404363874,1770077453469,-500.0,0.00017192,2]
[404363875,1770077453480,-500.0,0.000172,5]
[404363876,1770077453490,-1000.0,0.0001726,2]
[404363877,1770077453501,-361.48612637,0.00017265,2]
[404363878,1770077453511,-500.0,0.000174,2]
[404363879,1770077453522,-3286.0,0.00017451,2]
[404363880,1770077453533,-7398.87,0.00017455,2]
[404363881,1770077453543,-2258.0,0.00017491,2]
[404363882,1770077453556,-9035.0,0.00017491,2]
[404363883,1770077453566,-3429.0,0.00017495,2]
[404363884,1770077453576,-1000.0,0.00017534,2]
[404363885,1770077453586,-270.0455652,0.00017553,2]
[404363886,1770077453596,-159.60859955,0.00017565,2]
[404363887,1770077453606,-341.63207322,0.00017607,2]
[404363888,1770077453616,-500.0,0.00017644,2]
[404363889,1770077453626,-3286.0,0.00017702,2]
[404363890,1770077453636,-150.00591927,0.00017709,2]
[404363891,1770077453647,-200.0,0.00017712,2]
[404363892,1770077453656,-3286.0,0.00017727,2]
[404363893,1770077453667,-200.0,0.00017739,2]
[404363894,1770077453676,-500.0,0.0001774,2]
[404363895,1770077453686,-33288.2505,0.00017797,2]
[404363896,1770077453695,-1000.0,0.00017797,2]
[404363897,1770077453705,-500.0,0.000178,2]
[404363898,1770077453714,-500.0,0.00017808,2]
[404363899,1770077453723,-180.0,0.00017808,10]
[404363900,1770077453733,-170.864043,0.00017808,10]
[404363901,1770077453744,-1000.0,0.00017808,2]
[404363902,1770077453755,-2000.0,0.0001782,2]
[404363903,1770077453765,-2000.0,0.0001782,2]
[404363904,1770077453774,-386.87667747,0.00017822,2]
[404363905,1770077453787,-200.0,0.00017822,2]
[404363906,1770077453797,-200.0,0.00017856,2]
[404363907,1770077453807,-1379.17071038,0.00017861,2]
[404363908,1770077453818,-500.0,0.00017863,2]
[404363909,1770077453829,-10139.4576,0.00017871,2]
[404363910,1770077453840,-25000.0,0.00017874,3]
[404363911,1770077453851,-710.12,0.00017881,2]
[404363912,1770077453862,-500.0,0.00017881,2]
[404363913,1770077453873,-500.0,0.00017881,2]
[404363914,1770077453883,-846.12,0.00017881,2]
[404363915,1770077453893,-649.78,0.00017881,2]
[404363916,1770077453902,-1433.04,0.00017881,2]
[404363917,1770077453912,-500.0,0.00017881,2]
[404363918,1770077453922,-607.83,0.00017881,2]
[404363919,1770077453931,-3286.0,0.00017881,2]
[404363920,1770077453942,-25000.0,0.00017882,3]
[404363921,1770077453953,-25000.0,0.00017891,3]
[404363922,1770077453963,-200.0,0.00017896,2]
[404363923,1770077453973,-500.0,0.00017899,2]
[404363924,1770077453984,-677.31,0.00017899,2]
[404363925,1770077453994,-500.0,0.000179,2]
[404363926,1770077454003,-10000.0,0.000179,2]
[404363927,1770077454014,-20453.46079029,0.000179,3]
[404363928,1770077454024,-25000.0,0.000179,3]
[404363929,1770077454035,-11308.27724113,0.000179,2]
[404363930,1770077454044,-171.95027679,0.000179,2]
[404363931,1770077454055,-2602.29944506,0.000179,2]
[404363932,1770077454065,-3286.0,0.00017906,2]
[404363933,1770077454075,-500.0,0.00017918,2]
[404363934,1770077454085,-200.0,0.00017934,2]
[404363935,1770077454095,-900.0,0.00017943,2]
[404363936,1770077454105,-710.12,0.00017971,2]
[404363937,1770077454115,-710.12,0.00017971,2]
[404363938,1770077454125,-710.12,0.00017971,2]
[404363939,1770077454136,-710.12,0.00017971,2]
[404363940,1770077454146,-710.12,0.00017971,2]
[404363941,1770077454156,-710.24997295,0.00017971,2]
[404363942,1770077454166,-500.0,0.00017971,2]
[404363943,1770077454176,-317.29293236,0.00017971,2]
[404363944,1770077454185,-500.0,0.00017971,2]
[404363945,1770077454196,-224.99954883,0.00017971,2]
[404363946,1770077454206,-846.12,0.00017971,2]
[404363947,1770077454217,-846.12,0.00017971,2]
[404363948,1770077454227,-846.12,0.00017971,2]
[404363949,1770077454238,-846.12,0.00017971,2]
[404363950,1770077454248,-846.12,0.00017971,2]
[404363951,1770077454258,-846.2298754,0.00017971,2]
[404363952,1770077454268,-649.78,0.00017971,2]
[404363953,1770077454279,-649.78,0.00017971,2]
[404363954,1770077454289,-649.78,0.00017971,2]
[404363955,1770077454300,-649.78,0.00017971,2]
[404363956,1770077454310,-649.78,0.00017971,2]
[404363957,1770077454320,-649.95670735,0.00017971,2]
[404363958,1770077454330,-1433.04,0.00017971,2]
[404363959,1770077454340,-1433.04,0.00017971,2]
[404363960,1770077454350,-1433.04,0.00017971,2]
[404363961,1770077454360,-1433.04,0.00017971,2]
[404363962,1770077454369,-1433.04,0.00017971,2]
[404363963,1770077454379,-1433.19680468,0.00017971,2]
[404363964,1770077454389,-500.0,0.00017971,2]
[404363965,1770077454398,-346.60986891,0.00017971,2]
[404363966,1770077454407,-607.83,0.00017971,2]
[404363967,1770077454417,-607.83,0.00017971,2]
[404363968,1770077454426,-607.83,0.00017971,2]
[404363969,1770077454435,-607.83,0.00017971,2]
[404363970,1770077454444,-607.83,0.00017971,2]
[404363971,1770077454454,-607.97083377,0.00017971,2]
[404363972,1770077454463,-425260.23561664,0.00017972,2]
[404363973,1770077454790,-500.0,0.00010736,2]
[404363974,1770077454802,-319247.23051508,0.00017972,2]
[404363975,1770077455201,-514.0,0.00010791,2]
[404363976,1770077455211,-396.1,0.0001314,2]
[404363977,1770077455231,-265.1286,0.0001314,2]
[404363978,1770077455241,-333.26194966,0.0001314,2]
[404363979,1770077455633,-486.75843928,0.00010791,2]
[404363980,1770077455642,-507.4630817,0.00010846,2]
[404363981,1770077455653,-6.5369183,0.00010846,2]
[404363982,1770077455665,-514.0,0.00010901,2]
[404363983,1770077455674,-478.3694428,0.00010955,2]
[404363984,1770077455686,-35.6305572,0.00010955,2]
[404363985,1770077455696,-520.0,0.0001101,2]
[404363986,1770077455705,-119.19828502,0.0001314,2]
[404363987,1770077455719,-539.44516753,0.0001314,2]
[404363988,1770077455793,-512.52038678,0.0001314,2]
[404363989,1770077455811,-1866.83838607,0.0001314,2]
[404363990,1770077455824,-714.00289836,0.0001314,2]
[404363991,1770077455861,-151.0,0.00011273,2]
[404363992,1770077455870,-58797.67378237,0.0001314,2]
[404363993,1770077455879,-63544.16945579,0.00013606,2]
[404363994,1770077455888,-144209.20388678,0.00017972,2]
[404363995,1770077455896,-500.0,0.00017972,2]
[404363996,1770077455906,-52421.0,0.00017973,2]
[404363997,1770077455915,-151.0,0.00017997,2]
[404363998,1770077455924,-150.0,0.00017999,2]
[404363999,1770077455934,-150.0,0.00017999,2]
[404364000,1770077455943,-170.46493973,0.00017999,2]
[404364001,1770077455952,-202.144,0.00017999,2]
[404364002,1770077455962,-300.0,0.00017999,2]
[404364003,1770077455971,-1010.3175,0.00017999,2]
[404364004,1770077455981,-500.0,0.00017999,2]
[404364005,1770077455990,-500.0,0.00017999,2]
[404364006,1770077455998,-348.09184443,0.00017999,2]
[404364007,1770077456007,-677.31,0.00017999,2]
[404364008,1770077456016,-677.31,0.00017999,2]
[404364009,1770077456025,-677.31,0.00017999,2]
[404364010,1770077456036,-677.31,0.00017999,2]
[404364011,1770077456045,-677.31,0.00017999,2]
[404364012,1770077456057,-677.31,0.00017999,2]
[404364013,1770077456066,-677.31,0.00017999,2]
[404364014,1770077456075,-677.31,0.00017999,2]
[404364015,1770077456084,-677.42897736,0.00017999,2]
[404364016,1770077456093,-300.0,0.00017999,2]
[404364017,1770077456103,-300.0,0.00017999,2]
[404364018,1770077456112,-719.47771155,0.00017999,2]
[404364019,1770077456121,-300.0,0.00017999,2]
[404364020,1770077456131,-300.0,0.00017999,2]
[404364021,1770077456140,-666.0,0.00017999,2]
[404364022,1770077456149,-300.0,0.00017999,2]
[404364023,1770077456159,-200.0,0.00018,2]
[404364024,1770077456168,-146980.92060395,0.00018,2]
[404364025,1770077456179,-7898.3,0.00018,2]
[404364026,1770077456189,-310.81860523,0.00018,2]
[404364027,1770077456200,-904.64662748,0.00018,2]
[404364028,1770077456211,-936.33806065,0.00018,2]
[404364029,1770077456226,-6536.17783528,0.00018,2]
[404364030,1770077456251,-151.0,0.00011946,2]
[404364031,1770077456260,-4749.0,0.00018,2]
[404364032,1770077456271,-22271.09557072,0.00018,2]
[404364033,1770077456282,-1375.64173745,0.00018,2]
[404364034,1770077456308,-467.78365123,0.00018,2]
[404364035,1770077456319,-1174.54009619,0.00018,2]
[404364037,1770077671359,316.35054945,9.773e-05,2]
[404364038,1770077671422,500.0,9.773e-05,2]
[404364039,1770077671487,314.22583116,9.773e-05,2]
[404364040,1770077671845,500.0,9.773e-05,2]
[404364041,1770077671930,500.0,9.773e-05,2]
[404364042,1770077672447,500.0,9.773e-05,2]
[404364043,1770077672924,309.22053299,9.773e-05,2]
[404364044,1770077675748,500.0,9.773e-05,2]
[404364045,1770077675815,976.06420911,9.773e-05,2]
[404364046,1770077675869,416.68172338,9.773e-05,2]
[404364047,1770077675936,976.06420911,9.773e-05,2]
[404364048,1770077676028,976.06420911,9.773e-05,2]
[404364049,1770077676095,976.06420911,9.773e-05,2]
[404364050,1770077676170,976.06420911,9.773e-05,2]
[404364051,1770077676237,976.06420911,9.773e-05,2]
[404364052,1770077676321,287.14610836,9.773e-05,2]
[404364053,1770077676359,688.91810075,9.773e-05,2]
[404364054,1770077676442,976.06420911,9.773e-05,2]
[404364055,1770077676500,976.06420911,9.773e-05,2]
[404364056,1770077676568,976.06420911,9.773e-05,2]
[404364057,1770077676647,976.06420911,9.773e-05,2]
[404364058,1770077676710,976.06420911,9.773e-05,2]
[404364059,1770077676797,976.06420911,9.773e-05,2]
[404364060,1770077676860,976.06420911,9.773e-05,2]
[404364061,1770077676928,976.06420911,9.773e-05,2]
[404364062,1770077677002,976.06420911,9.773e-05,2]
[404364063,1770077677068,526.51401726,9.773e-05,2]
[404364064,1770077677110,449.55019185,9.773e-05,2]
[404364065,1770077677174,976.06420911,9.773e-05,2]
[404364066,1770077677252,976.06420911,9.773e-05,2]
[404364067,1770077677363,976.06420911,9.773e-05,2]
[404364068,1770077677428,976.06420911,9.773e-05,2]
[404364069,1770077677495,976.06420911,9.773e-05,2]
[404364070,1770077677569,976.06420911,9.773e-05,2]
[404364071,1770077677652,976.06420911,9.773e-05,2]
[404364072,1770077677718,976.06420911,9.773e-05,2]
[404364073,1770077677784,976.06420911,9.773e-05,2]
[404364074,1770077677873,765.88192616,9.773e-05,2]
[404364075,1770077677918,210.18228295,9.773e-05,2]
[404364076,1770077677987,976.06420911,9.773e-05,2]
[404364077,1770077678055,976.06420911,9.773e-05,2]
[404364078,1770077678124,976.06420911,9.773e-05,2]
[404364079,1770077678199,976.06420911,9.773e-05,2]
[404364080,1770077678278,976.06420911,9.773e-05,2]
[404364081,1770077678349,976.06420911,9.773e-05,2]
[404364082,1770077678415,976.06420911,9.773e-05,2]
[404364083,1770077678502,976.06420911,9.773e-05,2]
[404364084,1770077678596,976.06420911,9.773e-05,2]
[404364085,1770077701723,300.0,9.773e-05,2]
[404364086,1770077701800,1200.0,9.773e-05,2]
[404364087,1770077702201,150.0,9.773e-05,2]
[404364088,1770077703328,300.0,9.773e-05,2]
[404364089,1770077732032,598.55702236,9.773e-05,2]
[404364090,1770077732095,598.55702236,9.773e-05,2]
[404364091,1770077732161,598.55702236,9.773e-05,2]
[404364092,1770077732224,598.55702236,9.773e-05,2]
[404364093,1770077732305,598.55702236,9.773e-05,2]
[404364094,1770077732366,598.55702236,9.773e-05,2]
[404364095,1770077732436,598.55702236,9.773e-05,2]
[404364096,1770077732499,598.55702236,9.773e-05,2]
[404364097,1770077732563,598.55702236,9.773e-05,2]
[404364098,1770077732627,598.55702236,9.773e-05,2]
[404364099,1770077732688,598.55702236,9.773e-05,2]
[404364100,1770077732755,598.55702236,9.773e-05,2]
[404364101,1770077732824,598.55702236,9.773e-05,2]
[404364102,1770077732879,268.76870932,9.773e-05,2]
[404364103,1770077732922,329.78831304,9.773e-05,2]
[404364104,1770077732983,598.55702236,9.773e-05,2]
[404364105,1770077733044,598.55702236,9.773e-05,2]
[404364106,1770077733329,598.55702236,9.773e-05,2]
[404364107,1770077733390,598.55702236,9.773e-05,2]
[404364108,1770077733451,598.55702236,9.773e-05,2]
[404364109,1770077733521,598.55702236,9.773e-05,2]
[404364110,1770077733843,598.55702236,9.773e-05,2]
[404364111,1770077733908,598.55702236,9.773e-05,2]
[404364112,1770077733972,598.55702236,9.773e-05,2]
[404364113,1770077734122,598.55702236,9.773e-05,2]
[404364114,1770077734191,598.55702236,9.773e-05,2]
[404364115,1770077734256,598.55702236,9.773e-05,2]
[404364116,1770077734322,598.55702236,9.773e-05,2]
[404364117,1770077734380,598.55702236,9.773e-05,2]
[404364118,1770077782152,2500.0,9.674e-05,2]
[404364119,1770077793365,7500.01,9.764e-05,2]
[404364120,1770077793390,5000.01,9.764e-05,2]
[404364121,1770077793414,5000.01,9.764e-05,2]
[404364122,1770077793437,5000.01,9.764e-05,2]
[404364123,1770077793462,5000.01,9.764e-05,2]
[404364124,1770077793500,2592.49076565,9.764e-05,2]
[404364125,1770077821538,300.0,9.773e-05,2]
[404364126,1770077847027,500.0,9.747e-05,2]
[404364127,1770077847631,150.0,9.747e-05,2]
[404364128,1770077881574,300.0,9.773e-05,2]
[404364129,1770077882017,150.0,9.773e-05,2]
[404364130,1770077883037,300.0,9.773e-05,2]
[404364131,1770077886172,221.44538461,9.773e-05,2]
[404364132,1770077900147,502.97527913,9.773e-05,2]
[404364133,1770077900205,502.97527913,9.773e-05,2]
[404364134,1770077900273,502.97527913,9.773e-05,2]
[404364135,1770077900330,502.97527913,9.773e-05,2]
[404364136,1770077900388,502.97527913,9.773e-05,2]
[404364137,1770077900453,502.97527913,9.773e-05,2]
[404364138,1770077900513,502.97527913,9.773e-05,2]
[404364139,1770077900619,502.97527913,9.773e-05,2]
[404364140,1770077900724,502.97527913,9.773e-05,2]
[404364141,1770077900786,502.97527913,9.773e-05,2]
[404364142,1770077900855,456.32105844,9.773e-05,2]
[404364143,1770077900898,46.65422069,9.773e-05,2]
[404364144,1770077900963,502.97527913,9.773e-05,2]
[404364145,1770077901033,502.97527913,9.773e-05,2]
[404364146,1770077901091,502.97527913,9.773e-05,2]
[404364147,1770077901162,502.97527913,9.773e-05,2]
[404364148,1770077901216,502.97527913,9.773e-05,2]
[404364149,1770077901285,502.97527913,9.773e-05,2]
[404364150,1770077901338,502.97527913,9.773e-05,2]
[404364151,1770077901400,502.97527913,9.773e-05,2]
[404364152,1770077901463,502.97527913,9.773e-05,2]
[404364153,1770077901520,502.97527913,9.773e-05,2]
[404364154,1770077901577,502.97527913,9.773e-05,2]
[404364155,1770077901646,502.97527913,9.773e-05,2]
[404364156,1770077901711,502.97527913,9.773e-05,2]
[404364157,1770077901787,502.97527913,9.773e-05,2]
[404364158,1770077901844,502.97527913,9.773e-05,2]
[404364159,1770077901894,502.97527913,9.773e-05,2]
[404364160,1770077901951,502.97527913,9.773e-05,2]
[404364161,1770077902018,502.97527913,9.773e-05,2]
[404364162,1770077902121,502.97527913,9.773e-05,2]
[404364163,1770077902185,396.82547584,9.773e-05,2]
[404364164,1770077902225,106.14980329,9.773e-05,2]
[404364165,1770077902525,502.97527913,9.773e-05,2]
[404364166,1770077902583,502.97527913,9.773e-05,2]
[404364167,1770078023713,2942.69,9.089e-05,2]
[404364168,1770078050434,150.0,0.00011233,120]
[404364169,1770078075757,5000.01,9.197e-05,2]
[404364170,1770078075780,5000.01,9.197e-05,2]
[404364171,1770078075802,5000.01,9.197e-05,2]
[404364172,1770078075823,5000.01,9.197e-05,2]
[404364173,1770078075845,5000.01,9.197e-05,2]
[404364174,1770078075867,5000.01,9.197e-05,2]
[404364175,1770078075890,5000.01,9.197e-05,2]
[404364176,1770078075917,5000.01,9.197e-05,2]
[404364177,1770078075942,5000.01,9.197e-05,2]
[404364178,1770078075967,5000.01,9.197e-05,2]
[404364179,1770078076000,7057.32,9.197e-05,2]
[404364180,1770078076031,10000.01,9.197e-05,2]
[404364181,1770078076062,10000.01,9.197e-05,2]
[404364182,1770078076091,10000.01,9.197e-05,2]
[404364183,1770078076122,10000.01,9.197e-05,2]
[404364184,1770078076154,10000.01,9.197e-05,2]
[404364185,1770078076186,10000.01,9.197e-05,2]
[404364186,1770078076220,10000.01,9.197e-05,2]
[404364187,1770078076254,10000.01,9.197e-05,2]
[404364188,1770078076284,10000.01,9.197e-05,2]
[404364189,1770078089772,-2603.38440643,9.197e-05,2]
[404364190,1770078089849,-10000.01,9.197e-05,2]
[404364191,1770078090031,-10000.01,9.197e-05,2]
[404364192,1770078090209,-10000.01,9.197e-05,2]
[404364193,1770078090345,-10000.01,9.197e-05,2]
[404364194,1770078090551,-10000.01,9.197e-05,2]
[404364195,1770078090946,-10000.01,9.197e-05,2]
[404364196,1770078090974,-10000.01,9.197e-05,2]
[404364197,1770078091016,-10000.01,9.197e-05,2]
[404364198,1770078091188,-10000.01,9.197e-05,2]
[404364199,1770078095777,-10000.01,9.197e-05,2]
[404364200,1770078095934,-10000.01,9.197e-05,2]
[404364201,1770078096107,-10000.01,9.197e-05,2]
[404364202,1770078096352,-10000.01,9.197e-05,2]
[404364203,1770078096524,-10000.01,9.197e-05,2]
[404364204,1770078096689,-10000.01,9.197e-05,2]
[404364205,1770078096900,-10000.01,9.197e-05,2]
[404364206,1770078097340,-10000.01,9.197e-05,2]
[404364207,1770078097364,-10000.01,9.197e-05,2]
[404364208,1770078097402,-10000.01,9.197e-05,2]
[404364209,1770078104945,-10000.01,9.197e-05,2]
[404364210,1770078105133,-10000.01,9.197e-05,2]
[404364211,1770078105306,-10000.01,9.197e-05,2]
[404364212,1770078105452,-10000.01,9.197e-05,2]
[404364213,1770078105623,-10000.01,9.197e-05,2]
[404364214,1770078105807,-10000.01,9.197e-05,2]
[404364215,1770078105961,-10000.01,9.197e-05,2]
[404364216,1770078106121,-10000.01,9.197e-05,2]
[404364217,1770078106280,-10000.01,9.197e-05,2]
[404364218,1770078106459,-10000.01,9.197e-05,2]
[404364219,1770078110983,-10000.01,9.197e-05,2]
[404364220,1770078111129,-10000.01,9.197e-05,2]
[404364221,1770078111282,-10000.01,9.197e-05,2]
[404364222,1770078111413,-10000.01,9.197e-05,2]
[404364223,1770078111561,-10000.01,9.197e-05,2]
[404364224,1770078111713,-10000.01,9.197e-05,2]
[404364225,1770078111875,-10000.01,9.197e-05,2]
[404364226,1770078112035,-10000.01,9.197e-05,2]
[404364227,1770078112183,-10000.01,9.197e-05,2]
[404364228,1770078113036,-10000.01,9.197e-05,2]
[404364229,1770078117573,-10000.01,9.197e-05,2]
[404364230,1770078117766,-10000.01,9.197e-05,2]
[404364231,1770078118258,-10000.01,9.197e-05,2]
[404364232,1770078118295,-10000.01,9.197e-05,2]
[404364233,1770078118364,-4460.43440643,9.197e-05,2]
[404364234,1770078118400,-1079.14118714,9.197e-05,2]
[404364235,1770078257923,4531.23,8.938e-05,2]
[404364236,1770078313030,199.65,7.083e-05,2]
[404364237,1770078334723,5269.13,9e-05,2]
[404364238,1770078334755,9730.87,9e-05,2]
[404364239,1770078431108,150.0,0.00022,90]
[404364240,1770078442630,150.0,0.00022,90]
[404364241,1770078455943,174.34,9.197e-05,2]
[404364242,1770078458072,94.8,8.809e-05,2]
[404364243,1770078458121,1757.62,8.809e-05,2]
[404364289,1770078638094,-4566.23978508,9.337e-05,2]
[404364290,1770078638230,-799.58039692,9.337e-05,2]
[404364291,1770078638239,-227.0,9.384e-05,2]
[404364292,1770078638249,-250.0,9.432e-05,2]
[404364293,1770078638258,-437.82517864,9.432e-05,2]
[404364294,1770078638267,-300.0,9.444e-05,2]
[404364295,1770078638277,-500.0,9.444e-05,2]
[404364296,1770078638286,-500.0,9.447e-05,2]
[404364297,1770078638296,-150.0,9.447e-05,2]
[404364298,1770078638305,-1200.0,9.453e-05,2]
[404364299,1770078638314,-300.0,9.453e-05,2]
[404364300,1770078638324,-500.0,9.454e-05,2]
[404364301,1770078638333,-500.0,9.454e-05,2]
[404364302,1770078638343,-437.82517864,9.455e-05,2]
[404364303,1770078638352,-294.62907968,9.456e-05,2]
[404364304,1770078638361,-163.08,9.471e-05,2]
[404364305,1770078638371,-418.12904677,9.473e-05,2]
[404364307,1770078638379,-386.32100502,9.473e-05,2]
[404364309,1770078638388,-500.0,9.473e-05,2]
[404364311,1770078638397,-500.0,9.473e-05,2]
[404364313,1770078638406,-500.0,9.473e-05,2]
[404364315,1770078638415,-266.4543731,9.473e-05,2]
[404364317,1770078638425,-500.0,9.473e-05,2]
[404364319,1770078638434,-500.0,9.473e-05,2]
[404364321,1770078638444,-500.0,9.473e-05,2]
[404364323,1770078638453,-570.97314468,9.473e-05,2]
[404364325,1770078638462,-500.0,9.473e-05,2]
[404364327,1770078638472,-500.0,9.473e-05,2]
[404364329,1770078638481,-500.0,9.473e-05,2]
[404364331,1770078638490,-500.0,9.473e-05,2]
[404364333,1770078638499,-500.0,9.473e-05,2]
[404364335,1770078638509,-500.0,9.473e-05,2]
[404364337,1770078638520,-500.0,9.473e-05,2]
[404364339,1770078638529,-500.0,9.473e-05,2]
[404364340,1770078638538,-500.0,9.473e-05,2]
[404364343,1770078638548,-500.0,9.473e-05,2]
[404364344,1770078638557,-500.0,9.473e-05,2]
[404364346,1770078638566,-500.0,9.473e-05,2]
[404364348,1770078638575,-500.0,9.473e-05,2]
[404364350,1770078638585,-500.0,9.473e-05,2]
[404364352,1770078638606,-300.0,9.473e-05,2]
[404364354,1770078638622,-300.0,9.473e-05,2]
[404364356,1770078638632,-150.0,9.473e-05,2]
[404364358,1770078638644,-3500000.0,9.474e-05,2]
[404364360,1770078638654,-3724.9148492,9.478e-05,2]
[404364362,1770078638663,-437.82517864,9.478e-05,2]
[404364364,1770078638673,-6079.094,9.48e-05,2]
[404364366,1770078638683,-516.174,9.48e-05,2]
[404364368,1770078638693,-550.0,9.502e-05,2]
[404364370,1770078638703,-163.08,9.571e-05,2]
[404364372,1770078638712,-13758.9241,9.574e-05,2]
[404364373,1770078638724,-2500.0,9.574e-05,2]
[404364374,1770078638734,-6768.6851148,9.672e-05,2]
[404364375,1770078638744,-994.72,9.673e-05,2]
[404364376,1770078638754,-499.99,9.674e-05,2]
[404364377,1770078638764,-150.99,9.674e-05,2]
[404364378,1770078638774,-9999.99,9.674e-05,2]
[404364379,1770078638784,-4999.99,9.674e-05,2]
[404364380,1770078638794,-150.99,9.674e-05,2]
[404364381,1770078638804,-299.99,9.674e-05,2]
[404364382,1770078638813,-999.99,9.674e-05,2]
[404364384,1770078638823,-9999.99,9.674e-05,2]
[404364386,1770078638832,-9999.99,9.674e-05,2]
[404364388,1770078638842,-500.0,9.674e-05,2]
[404364390,1770078638851,-9999.99,9.674e-05,2]
[404364392,1770078638861,-9999.99,9.674e-05,2]
[404364394,1770078638870,-288.37048386,9.745e-05,2]
[404364396,1770078638881,-6286.0,9.753e-05,2]
[404364398,1770078638891,-1000.0,9.772e-05,2]
[404364400,1770078638901,-205.0,9.8e-05,2]
[404364402,1770078638910,-119537.7616,9.864e-05,2]
[404364404,1770078638920,-33288.2505,9.874e-05,2]
[404364406,1770078638929,-1000.0,9.874e-05,2]
[404364408,1770078638938,-10000.0,9.874e-05,2]
[404364410,1770078638948,-1282.0,9.94e-05,2]
[404364412,1770078638958,-243.4435957,9.94e-05,2]
[404364414,1770078638967,-994.72,9.947e-05,2]
[404364416,1770078638976,-500.0,9.948e-05,2]
[404364418,1770078638985,-211.71017853,0.0001,2]
[404364420,1770078638995,-211.71017853,0.0001,2]
[404364422,1770078639007,-211.71017853,0.0001,2]
[404364424,1770078639025,-486.73,0.0001,2]
[404364426,1770078639038,-151.0,0.0001,2]
[404364428,1770078639049,-151.0,0.0001,2]
[404364430,1770078639059,-151.0,0.0001,2]
[404364431,1770078639068,-151.0,0.0001,2]
[404364433,1770078639077,-151.0,0.0001,2]
[404364435,1770078639089,-151.0,0.0001,2]
[404364437,1770078639098,-151.0,0.0001,2]
[404364439,1770078639108,-500.0,0.0001,2]
[404364442,1770078639118,-151.0,0.0001,2]
[404364444,1770078639131,-500.0,0.0001,2]
[404364446,1770078639140,-151.0,0.0001,2]
[404364448,1770078639154,-500.0,0.0001,2]
[404364450,1770078639163,-151.0,0.0001,2]
[404364452,1770078639173,-500.0,0.0001,2]
[404364454,1770078639182,-151.0,0.0001,2]
[404364456,1770078639194,-500.0,0.0001,2]
[404364458,1770078639204,-500.0,0.0001,2]
[404364459,1770078639214,-500.0,0.0001,2]
[404364461,1770078639224,-500.0,0.0001,2]
[404364463,1770078639235,-500.0,0.0001,2]
[404364465,1770078639244,-500.0,0.0001,2]
[404364467,1770078639254,-500.0,0.0001,2]
[404364469,1770078639263,-500.0,0.0001,2]